[Event "7th Sharjah Masters 2024"]
[Site "Sharjah"]
[Date "2024.05.22"]
[Round "9.9"]
[White "Mishra, Abhimanyu"]
[Black "Sankalp Gupta"]
[Result "1-0"]
[ECO "C43"]
[WhiteElo "2634"]
[BlackElo "2532"]
[Annotator "RC"]
[PlyCount "123"]
[EventDate "2024.05.13"]
[EventType "swiss"]
[EventCountry "UAE"]
[SourceTitle "playchess.com"]
[Source "ChessBase"]
[SourceQuality "1"]
[TimeControl "5400+30"]

1. e4 {[%emt 1:31:00]} e5 {[%emt 1:31:00]} 2. Nf3 {[%emt 0:00:30]} Nf6 {[%emt 0:00:30]} 3. d4 {[%emt 0:00:30]} Nxe4 {[%emt 0:00:30]} 4. Bd3 {[%emt 0:00:30]} d5 {[%emt 0:00:30]} 5. Nxe5 {[%emt 0:00:30]} Nd7 {[%emt 0:00:30]} 6. O-O {[%emt 0:00:30]} Nxe5 {[%emt 0:00:30]} 7. dxe5 {[%emt 0:00:30]} Nc5 {[%emt 0:00:30]} 8. Be3 {[%emt 0:00:30]} Nxd3 {[%emt 0:00:30]} 9. Qxd3 {[%emt 0:00:30]} c6 {[%emt 0:00:30]} 10. f4 {[%emt 0:00:30]} g6 {[%emt 0:00:30]} 11. Nd2 {[%emt 0:00:30]} Bf5 {[%emt 0:00:30]} 12. Qb3 {[%emt 0:00:30]} Qd7 {[%emt 0:00:30]} 13. Qc3 {[%emt 0:00:30]} Bg7 {[%emt 0:00:30]} 14. b4 {[%emt 0:00:30]} O-O {[%emt 0:00:30]} 15. a4 {[%emt 0:00:30]} f6 {[%emt 0:00:30]} 16. Nf3 {[%emt 0:00:30]} Be4 {[%emt 0:00:30]} 17. Bd4 {[%emt 0:00:30]} fxe5 {[%emt 0:00:30]} 18. Nxe5 {[%emt 0:00:30]} Bxe5 {[%emt 0:00:30]} 19. Bxe5 {[%emt 0:00:30]} h6 {[%emt 0:00:30]} 20. Rf2 {[%emt 0:00:30]} Kh7 {[%emt 0:00:30]} 21. a5 {[%emt 0:00:30]} Rf7 {[%emt 0:00:30]} 22. Bd4 {[%emt 0:00:30]} a6 {[%emt 0:00:30]} 23. h3 {[%emt 0:00:30]} g5 {[%emt 0:00:30]} 24. fxg5 {[%emt 0:00:30]} Rxf2 {[%emt 0:00:30]} 25. Bxf2 {[%emt 0:00:30]} hxg5 {[%emt 0:00:30]} 26. Bc5 {[%emt 0:00:30]} Qg7 {[%emt 0:00:30]} 27. Bd4 {[%emt 0:00:30]} Qg8 {[%emt 0:00:30]} 28. Rf1 {[%emt 0:00:30]} Rf8 {[%emt 0:00:30]} 29. Rxf8 {[%emt 0:00:30]} Qxf8 {[%emt 0:00:30]} 30. Qg3 {[%emt 0:00:30]} Kg6 {[%emt 0:00:30]} 31. Qe5 {[%emt 0:00:30]} Bf5 {[%emt 0:00:30]} 32. c3 {[%emt 0:00:30]} Qf7 {[%emt 0:00:30]} 33. Qd6+ {[%emt 0:00:30]} Be6 {[%emt 0:00:30]} 34. Qe5 {[%emt 0:00:30]} Bf5 {[%emt 0:00:30]} 35. Qg3 {[%emt 0:00:30]} Be6 {[%emt 0:00:30]} 36. Be3 {[%emt 0:00:30]} Qf5 {[%emt 0:00:30]} 37. Qd6 {[%emt 0:00:30]} Qe4 {[%emt 0:00:30]} 38. Qg3 {[%emt 0:00:30]} Qf5 {[%emt 0:00:30]} 39. Qb8 {[%emt 0:00:30]} Qe4 {[%emt 0:00:30]} 40. Bd4 {[%emt 0:00:30]} g4 {[%emt 0:00:30]} 41. Qg3 {[%emt 0:00:30]} Qb1+ {[%emt 0:00:30]} 42. Kh2 {[%emt 0:00:30]} Qe4 {[%emt 0:00:30]} 43. h4 {[%emt 0:00:30]} Kf5 {[%emt 0:00:30]} 44. Kh1 {[%emt 0:00:30]} Qf4 {[%emt 0:00:30]} 45. Qd3+ {[%emt 0:00:30]} Qe4 46. Qf1+ {[%emt 0:00:30]} Qf4 {[%emt 0:01:00]} 47. Qb1+ {[%emt 0:00:30]} Qe4 {[%emt 0:00:30]} 48. Qd1 {[%emt 0:00:30]} Qf4 {[%emt 0:00:30]} 49. Kg1 {[%emt 0:00:30]} Kg6 {[%emt 0:00:30]} 50. Qe1 {[%emt 0:00:30]} Qe4 {[%emt 0:00:30]} 51. Qf2 {[%emt 0:00:30]} Bf5 {[%emt 0:00:30]} 52. Qd2 {[%emt 0:00:30]} Qe7 {[%emt 0:00:30]} 53. Bf2 {[%emt 0:00:30]} Bd7 {[%emt 0:00:30]} 54. Qf4 {[%emt 0:00:30]} Qf6 {[%emt 0:00:30]} 55. h5+ {[%emt 0:00:30]} Kf7 {[%emt 0:00:30]} 56. Qc7 {[%emt 0:00:30]} Ke8 {[%emt 0:00:30]} 57. Qb8+ {[%emt 0:00:30]} Qd8 {[%emt 0:00:30]} 58. Qxb7 {[%emt 0:00:30]} Qg5 59. Qxa6 {[%emt 0:00:30]} Qxh5 {[%emt 0:01:00]} 60. Qe2+ {[%emt 0:00:30]} Kd8 {[%emt 0:00:30]} 61. Bb6+ {[%emt 0:00:30]} Kc8 62. Qa6+ {[%emt 0:00:30]} 1-0

[Event "7th Sharjah Masters 2024"]
[Site "Sharjah"]
[Date "2024.05.22"]
[Round "9.10"]
[White "Petrosyan, Manuel"]
[Black "Artemiev, Vladislav"]
[Result "1/2-1/2"]
[ECO "C84"]
[WhiteElo "2618"]
[BlackElo "2705"]
[Annotator "TA"]
[PlyCount "58"]
[EventDate "2024.05.13"]
[EventType "swiss"]
[EventCountry "UAE"]
[SourceTitle "playchess.com"]
[Source "ChessBase"]
[SourceQuality "1"]
[TimeControl "5400+30"]

{[%evp 18,58,20,18,19,22,20,21,15,22,14,16,26,26,28,15,38,36,56,31,58,34,52,51,58,0,0,0,16,16,10,10,7,10,14,11,18,0,0,0,8,0,0]} 1. e4 {[%emt 0:02:09]} e5 {[%emt 0:00:51]} 2. Nf3 {[%emt 0:00:18]} Nc6 {[%emt 0:00:21]} 3. Bb5 {[%emt 0:00:15][%cal Bf1b5,Bb5a4,Ba4b3][%mdl 32]} a6 {[%emt 0:07:38]} 4. Ba4 {[%emt 0:01:43]} Nf6 {[%emt 0:00:22]} 5. O-O {[%emt 0:00:21]} Be7 {[%emt 0:01:58]} 6. d3 {[%emt 0:02:44]} b5 {[%emt 0:02:05]} 7. Bb3 {[%emt 0:00:06]} O-O {[%emt 0:00:51]} 8. a4 {[%emt 0:01:28]} b4 {[%emt 0:04:01]} 9. a5 {[%emt 0:00:51]} d6 {[%emt 0:07:12]} 10. Nbd2 {[%emt 0:03:01]} Be6 {[%emt 0:10:45]} 11. Bxe6 {[%emt 0:13:30]} fxe6 {[%emt 0:02:15]} 12. Re1 {[%emt 0:01:22]} Rb8 {[%emt 0:06:51]} 13. c3 {[%emt 0:00:06]} Rb5 {[%emt 0:15:29]} 14. d4 {[%emt 0:08:32]} bxc3 {[%emt 0:01:41]} 15. bxc3 {[%emt 0:01:44]} exd4 {[%emt 0:02:52]} 16. cxd4 {[%emt 0:01:23]} Qd7 {[%emt 0:06:34]} 17. Nc4 {[%emt 0:09:23]} Rb4 {[%emt 0:01:16]} 18. Qc2 {[%emt 0:06:03]} Ng4 {[%emt 0:08:33]} 19. Qe2 {[%emt 0:23:49]} d5 {[%emt 0:02:35]} 20. Ncd2 {[%emt 0:01:05]} Rb5 {[%emt 0:12:22]} 21. exd5 {[%emt 0:02:25]} ({White should play} 21. Ba3 $14) 21... exd5 $11 {[%emt 0:00:12] The position is equal.} 22. Ba3 {[%emt 0:06:05]} Bxa3 {[%emt 0:03:18]} 23. Rxa3 {[%emt 0:00:05]} Qd6 {[%emt 0:00:05] [#] And now ...Nxd4 would win.} 24. Qe6+ {[%emt 0:01:57]} Qxe6 {[%emt 0:00:10]} 25. Rxe6 {[%emt 0:00:25]} Rf6 {[%emt 0:00:38]} 26. Re8+ {[%emt 0:00:23]} Rf8 {[%emt 0:00:05]} 27. Re6 {[%emt 0:07:49]} Rf6 {[%emt 0:00:12]} 28. Re8+ {[%emt 0:00:04]} Rf8 {[%emt 0:00:04]} 29. Re6 {[%emt 0:05:54]} Rf6 {[%emt 0:00:07] Weighted Error Value: White=0.08 (flawless) /Black=0.07 (flawless) .  Mistake:       	White=1     	---        Inaccurate:     	---       	Black=1      OK:         	White=9     	Black=6      Best:        	---       	Black=3} 1/2-1/2

[Event "7th Sharjah Masters 2024"]
[Site "Sharjah"]
[Date "2024.05.22"]
[Round "9.11"]
[White "Maurizzi, Marc`Andria"]
[Black "Sevian, Samuel"]
[Result "1/2-1/2"]
[ECO "E60"]
[WhiteElo "2618"]
[BlackElo "2699"]
[Annotator "TA"]
[PlyCount "78"]
[EventDate "2024.05.13"]
[EventType "swiss"]
[EventCountry "UAE"]
[SourceTitle "playchess.com"]
[Source "ChessBase"]
[SourceQuality "1"]
[TimeControl "5400+30"]

{[%evp 9,78,6,45,39,41,50,49,40,49,53,47,39,72,67,80,64,82,63,68,40,43,47,54,23,19,9,20,0,0,0,0,0,0,0,0,0,0,0,0,0,0,0,0,0,0,0,0,0,0,-12,0,0,0,-8,-10,-10,-10,-10,-3,-36,0,0,0,0,0,0,-6,-6,0,0,0]} 1. d4 {[%emt 0:00:02]} Nf6 {[%emt 0:04:31]} 2. c4 {[%emt 0:00:16]} g6 {[%emt 0:00:15]} 3. g3 {[%emt 1:31:42]} c5 {[%emt 0:04:33]} 4. dxc5 {[%emt 0:00:00]} Qa5+ {[%emt 0:05:45]} 5. Nc3 {[%emt 0:00:00]} Qxc5 {[%emt 0:01:13]} 6. e4 {[%emt 0:00:00]} d6 {[%emt 0:02:31]} 7. Be3 {[%emt 0:00:00]} Qa5 {[%emt 0:02:55]} 8. Bg2 {[%emt 0:00:00] White is slightly better.} Nc6 {[%emt 0:19:14]} 9. Nge2 {[%emt 0:00:00]} Bg7 {[%emt 0:00:10]} 10. O-O {[%emt 0:00:00]} O-O {[%emt 0:08:53]} 11. b3 {[%emt 0:00:00]} Bd7 {[%emt 0:07:24]} 12. Rc1 {[%emt 0:00:00]} Ng4 {[%emt 0:01:41]} 13. Bd2 {[%emt 0:00:00]} Qh5 {[%emt 0:00:40][%csl Gg4][%cal Rh5h2] [#]} 14. h3 {[%emt 0:00:00] aiming for Nf4.} Nge5 {[%emt 0:02:24]} 15. Nf4 {[%emt 0:00:00]} Qxd1 {[%emt 0:00:30]} 16. Rfxd1 {[%emt 0:00:00]} g5 {[%emt 0:03:32][%cal Bg6g5,Bg5g4][%mdl 32]} 17. Nh5 {[%emt 0:00:00]} g4 {[%emt 0:01:23]} 18. Nxg7 {[%emt 0:00:00]} Kxg7 {[%emt 0:00:05]} 19. h4 {[%emt 0:00:00]} f6 {[%emt 0:08:19]} 20. Be3 {[%emt 0:00:00]} b6 {[%emt 0:00:42]} 21. Nd5 {[%emt 0:00:00]} Kf7 {[%emt 0:00:01]} 22. Bf1 {[%emt 0:00:00]} Nf3+ {[%emt 0:01:12]} 23. Kg2 {[%emt 0:00:00]} Nce5 {[%emt 0:00:18]} 24. Be2 {[%emt 0:00:00]} f5 {[%emt 0:03:31]} 25. exf5 {[%emt 0:00:00]} Bxf5 {[%emt 0:00:01]} 26. Nc7 {[%emt 0:00:55]} Rad8 {[%emt 0:03:35]} 27. Nb5 {[%emt 0:00:31]} Be4 {[%emt 0:00:12] ...Nd4+ is the strong threat.} 28. Kf1 {[%emt 0:00:04]} Nh2+ {[%emt 0:00:41] Excellent horsemanship.} 29. Ke1 {[%emt 0:00:32]} Nhf3+ {[%emt 0:01:24]} 30. Kf1 {[%emt 0:01:44]} Nh2+ {[%emt 0:00:21]} 31. Ke1 {[%emt 0:00:00][%cal Bf1e1,Be1e2,Be2d2,Bd2c3][%mdl 32]} Nef3+ {[%emt 0:02:58]} 32. Bxf3 {[%emt 0:00:05]} Nxf3+ {[%emt 0:00:06]} 33. Ke2 {[%emt 0:01:55]} Ne5 {[%emt 0:00:02] And now ...Bf3+ would win.} 34. Kd2 {[%emt 0:03:42]} Bf3 {[%emt 0:01:08] [#] Threatens to win with ...d5.} 35. Re1 {[%emt 0:00:59] The position is equal.} Nc6 {[%emt 0:00:46]} 36. Nd4 {[%emt 0:01:02]} Nxd4 {[%emt 0:00:48]} 37. Bxd4 {[%emt 0:00:01]} e5 {[%emt 0:00:11]} 38. Be3 {[%emt 0:00:04]} Ke6 {[%emt 0:01:31]} 39. Kc3 {[%emt 0:00:06]} Rc8 {[%emt 0:03:13] Weighted Error Value: White=0.05 (flawless) /Black=0.05 (flawless) .  Inaccurate:     	White=3     	Black=2      OK:         	White=12    	Black=17     Best:        	White=2     	Black=2} 1/2-1/2

[Event "7th Sharjah Masters 2024"]
[Site "Sharjah"]
[Date "2024.05.22"]
[Round "9.12"]
[White "Blohberger, Felix"]
[Black "Deac, Bogdan-Daniel"]
[Result "1/2-1/2"]
[ECO "E12"]
[WhiteElo "2506"]
[BlackElo "2693"]
[Annotator "TA"]
[PlyCount "118"]
[EventDate "2024.05.13"]
[EventType "swiss"]
[EventCountry "UAE"]
[SourceTitle "playchess.com"]
[Source "ChessBase"]
[SourceQuality "1"]
[TimeControl "5400+30"]

{[%evp 63,118,45,56,63,68,77,81,82,108,116,120,124,111,111,167,170,167,171,184,110,253,258,257,199,327,318,312,321,367,245,246,188,225,44,60,0,0,0,0,0,0,0,0,0,0,0,0,0,0,0,0,0,0,0,0,0,0]} 1. d4 {[%emt 1:31:00]} Nf6 {[%emt 1:31:00]} 2. c4 {[%emt 0:00:30]} e6 {[%emt 0:00:30]} 3. Nf3 {[%emt 0:00:30]} b6 {[%emt 0:00:30]} 4. a3 {[%emt 0:00:30]} Bb7 {[%emt 0:00:30]} 5. Nc3 {[%emt 0:00:30]} Ne4 {[%emt 0:00:30]} 6. Nxe4 {[%emt 0:00:30]} Bxe4 {[%emt 0:00:30]} 7. Bf4 {[%emt 0:00:30]} d6 {[%emt 0:00:30] E12: Queen's Indian: Unusual White 4th moves, 4 a3, 4 Nc3 Bb7 5 a3 and 4 Nc3 Bb7 .} 8. e3 {[%emt 0:00:30]} Nd7 {[%emt 0:00:30]} 9. Bd3 {[%emt 0:00:30]} Bxd3 {[%emt 0:00:30]} 10. Qxd3 {[%emt 0:00:30]} Be7 {[%emt 0:00:30]} 11. Rd1 {[%emt 0:00:30] 11.e4 gains popularity.} a5 {[%emt 0:00:30]} 12. e4 {[%emt 0:00:30]} a4 {[%emt 0:00:30]} 13. O-O {[%emt 0:00:30]} Nf8 $146 {[%emt 0:00:30]} ({Predecessor:} 13... O-O 14. Rfe1 Re8 15. e5 Nf8 16. d5 exd5 17. Qxd5 dxe5 18. Qxe5 Qc8 19. Qxc7 Ne6 20. Qxc8 Raxc8 21. Bd6 Bf6 22. Be5 {½-½ Gukesh,D (2599)-Romanov,E (2594) Norway Chess op 2021 (10)}) 14. c5 {[%emt 0:00:30]} Ng6 {[%emt 0:00:30]} 15. cxd6 {[%emt 0:00:30]} cxd6 {[%emt 0:00:30]} 16. Be3 {[%emt 0:00:30]} d5 {[%emt 0:00:30]} 17. e5 {[%emt 0:00:30]} O-O {[%emt 0:00:30]} 18. g3 {[%emt 0:00:30]} f6 {[%emt 0:00:30]} 19. exf6 {[%emt 0:00:30]} Rxf6 {[%emt 0:00:30]} 20. Qe2 {[%emt 0:00:30]} h6 {[%emt 0:00:30]} 21. Rc1 {[%emt 0:00:30]} Bd6 {[%emt 0:00:30]} 22. Ne1 {[%emt 0:00:30]} Ne7 {[%emt 0:00:30]} 23. Ng2 {[%emt 0:00:30]} Nf5 {[%emt 0:00:30]} 24. Rc6 {[%emt 0:00:30]} Ne7 {[%emt 0:00:30]} 25. Rc2 {[%emt 0:00:30]} Nf5 {[%emt 0:00:30]} 26. Rc6 {[%emt 0:00:30]} Ne7 {[%emt 0:00:30]} 27. Rc2 {[%emt 0:00:30]} Qd7 {[%emt 0:00:30]} 28. Bf4 {[%emt 0:00:30]} Nf5 {[%emt 0:00:30]} 29. Be5 {[%emt 0:00:30]} Bxe5 {[%emt 0:00:30]} 30. Qxe5 {[%emt 0:00:30]} Nd6 {[%emt 0:00:30]} 31. Ne3 {[%emt 0:00:30]} Rff8 {[%emt 0:00:30]} 32. Rfc1 {[%emt 0:00:30]} Nf7 {[%emt 0:00:30]} 33. Qc7 {[%emt 0:00:30]} Qxc7 {[%emt 0:00:30]} 34. Rxc7 {[%emt 0:00:30]} Ng5 {[%emt 0:00:30]} 35. Kg2 {[%emt 0:00:30]} b5 {[%emt 0:00:30]} (35... Nf3 $2 36. Rd7 Ng5 (36... Nxd4 $2 37. Rcc7 $18) 37. f4 $18) 36. R1c6 {[%emt 0:00:30]} Rf7 {[%emt 0:00:30]} 37. Rxf7 {[%emt 0:00:30]} Kxf7 {[%emt 0:00:30]} 38. Rb6 {[%emt 0:00:30]} Rc8 {[%emt 0:00:30]} (38... Ne4 $16 39. Rxb5 h5 40. Rb7+ Kg8) 39. Rxb5 $18 {[%emt 0:00:30]} Rc1 {[%emt 0:00:30]} 40. Rb4 {[%emt 0:00:30]} Rb1 {[%emt 0:00:30]} 41. f3 {[%emt 0:00:30]} (41. Rxa4 Rxb2 42. h4 Ne4 $14) (41. h4 $18 Ne4 42. Kf3 (42. Rxa4 Rxb2 43. Ng4 Kg6 $14)) 41... e5 {[%emt 0:00:30]} (41... Ke7 $16 {might work better.}) 42. dxe5 $18 {[%emt 0:00:30]} d4 {[%emt 0:00:30]} 43. Nf1 {[%emt 0:00:30]} (43. Rxd4 Rxb2+ 44. Kf1 Rb3 $14) 43... d3 {[%emt 0:00:30]} (43... Nxf3 $142 44. Kxf3 (44. Rxa4 Nxe5 45. Rxd4 Rxb2+ 46. Rd2 Rb3 $11) 44... Rxf1+ 45. Ke4 Rf2) 44. f4 $1 $18 {[%emt 0:00:30]} (44. Rxa4 $2 Rxb2+ 45. Kh1 Rf2 (45... Nxf3 46. Rf4+ Ke6 47. Rxf3 $14) 46. Ra7+ Ke6 47. Ra6+ Kxe5 48. f4+ Ke4 $19) 44... Ne6 {[%emt 0:00:30]} 45. Kf2 {[%emt 0:00:30]} (45. Rxa4 d2 46. Ra7+ (46. Nxd2 Rxb2 47. Ra7+ Ke8 $11) 46... Ke8 47. Nxd2 Rxb2 $17) 45... Rd1 {[%emt 0:00:30]} 46. Rb7+ {[%emt 0:00:30]} ({But not} 46. Rxa4 d2 47. Ne3 (47. Ra7+ Ke8 $16) 47... Re1 $18) 46... Ke8 {[%emt 0:00:30]} 47. Rb5 {[%emt 0:00:30]} h5 {[%emt 0:00:30]} 48. f5 $2 {[%emt 0:00:30]} (48. Rd5 $18) 48... Nd4 $14 {[%emt 0:00:30]} 49. Rd5 {[%emt 0:00:30]} ({Better is} 49. Rb4 $1 $14 Nxf5 50. Ne3 (50. Rxa4 $2 d2 $19) 50... Rd2+ 51. Kf3 Nxe3 52. Kxe3 Rxh2 53. Kxd3 (53. Rxa4 Rxb2 54. Rd4 Re2+ 55. Kf4 d2 $11)) 49... Nxf5 $11 {[%emt 0:00:30]} 50. Ne3 $1 {[%emt 0:00:30]} Rd2+ {[%emt 0:00:30]} 51. Kf3 {[%emt 0:00:30]} Nxe3 {[%emt 0:00:30]} (51... Ne7 {is interesting.} 52. Nc4 Rc2 53. Nd6+ Kd7) 52. Kxe3 {[%emt 0:00:30]} Rxh2 {[%emt 0:00:30]} 53. Rxd3 {[%emt 0:00:30]} Rxb2 {[%emt 0:00:30]} 54. Kf4 {[%emt 0:00:30]} Rb3 {[%emt 0:00:30]} 55. Rd6 {[%emt 0:00:30]} Rxa3 {[%emt 0:00:30]} 56. Ra6 {[%emt 0:00:30]} Ra1 {[%emt 0:00:30]} 57. Kg5 {[%emt 0:00:30]} h4 {[%emt 0:00:30]} 58. Kxh4 {[%emt 0:00:30]} Re1 {[%emt 0:00:30]} 59. Rxa4 {[%emt 0:00:30]} Rxe5 {[%emt 0:00:30]} 1/2-1/2

[Event "7th Sharjah Masters 2024"]
[Site "Sharjah"]
[Date "2024.05.22"]
[Round "9.13"]
[White "Niemann, Hans Moke"]
[Black "Idani, Pouya"]
[Result "1-0"]
[ECO "A21"]
[WhiteElo "2689"]
[BlackElo "2605"]
[Annotator "TA"]
[PlyCount "77"]
[EventDate "2024.05.13"]
[EventType "swiss"]
[EventCountry "UAE"]
[SourceTitle "playchess.com"]
[Source "ChessBase"]
[SourceQuality "1"]
[TimeControl "5400+30"]

{[%evp 9,77,15,43,16,22,20,25,12,11,11,11,16,14,25,33,27,36,27,32,42,51,44,51,31,39,37,37,32,54,46,46,22,65,60,75,70,60,83,67,85,68,84,108,108,104,108,109,108,98,97,106,90,262,242,4134,4116,2563,3116,4139,4260,4347,5987,12816,6375,29968,29972,29979,29979,29979,29980]} 1. c4 {[%emt 0:00:05]} e5 {[%emt 0:01:49]} 2. g3 {[%emt 0:00:12]} d6 {[%emt 0:00:10]} 3. Nc3 {[%emt 0:01:29]} Be7 {[%emt 0:00:20]} 4. d4 {[%emt 0:03:55]} f5 {[%emt 0:01:01]} 5. Bh3 {[%emt 0:00:18]} a5 {[%emt 0:00:10]} 6. dxe5 {[%emt 0:02:35]} dxe5 {[%emt 0:00:06]} 7. Qxd8+ {[%emt 0:00:06]} Bxd8 {[%emt 0:00:05]} 8. e4 {[%emt 0:07:15] White has an edge.} Nc6 {[%emt 0:04:18]} 9. Bxf5 {[%emt 0:01:42]} Bxf5 {[%emt 0:00:06]} 10. exf5 {[%emt 0:00:04]} Nd4 {[%emt 0:00:04] Threatens to win with ...Nc2+.} 11. Kf1 {[%emt 0:00:14][%cal Be1f1,Bf1g2,Bg2f3][%mdl 32]} Nxf5 {[%emt 0:08:14]} 12. Nf3 {[%emt 0:01:27]} Bf6 {[%emt 0:00:07]} 13. Ne4 {[%emt 0:04:04]} O-O-O {[%emt 0:13:46]} 14. Bd2 {[%emt 0:05:15]} Nd4 {[%emt 0:00:12]} 15. Kg2 {[%emt 0:01:44]} b6 {[%emt 0:04:54]} 16. Bc3 {[%emt 0:17:08]} Nxf3 {[%emt 0:02:15]} 17. Kxf3 {[%emt 0:00:17]} Ne7 {[%emt 0:00:03]} 18. Rad1 {[%emt 0:04:37]} Rd7 {[%emt 0:05:25]} 19. h4 {[%emt 0:06:44]} Nc6 {[%emt 0:00:24]} 20. Rd5 {[%emt 0:01:05]} Rhd8 {[%emt 0:16:08][%cal Bh8d8,Bd8d5,Bd5e5][%mdl 32]} 21. Rhd1 {[%emt 0:03:58] White is much more active.} Nd4+ {[%emt 0:03:33]} 22. Bxd4 {[%emt 0:01:34]} Rxd5 $1 {[%emt 0:00:05]} 23. cxd5 {[%emt 0:00:10]} Rxd5 {[%emt 0:00:03]} 24. Nxf6 $1 {[%emt 0:00:45]} gxf6 $16 {[%emt 0:00:04][%mdl 4096] Endgame. KRB-KR} 25. Ke4 {[%emt 0:00:07]} c6 {[%emt 0:00:39] [#]} 26. g4 $1 {[%emt 0:05:06][%cal Of2f4]} exd4 {[%emt 0:13:12]} 27. Rxd4 {[%emt 0:01:50] KR-KR} Re5+ {[%emt 0:00:05]} 28. Kd3 {[%emt 0:00:33]} Kc7 {[%emt 0:04:53] Prevents Rd6} 29. Rf4 {[%emt 0:01:27]} Re6 {[%emt 0:00:31]} 30. Re4 {[%emt 0:01:40]} Kd6 {[%emt 0:10:08] [#] This costs Black the game.} (30... Rd6+ $16 {was called for.} 31. Ke3 Kd7) 31. f4 $1 $18 {[%emt 0:01:58][%cal Bf2f4,Bf4f5][%mdl 32] Hoping for b3.} b5 $2 {[%emt 0:00:13]} (31... a4 32. Rd4+ (32. Rxa4 Re1 $18) 32... Kc5 33. Rxa4 Re1) 32. Rxe6+ {[%emt 0:02:08]} Kxe6 {[%emt 0:00:05] KP-KP} 33. Kd4 {[%emt 0:00:03]} Kd6 {[%emt 0:00:49]} 34. g5 {[%emt 0:00:22][%cal Bg4g5,Bg5f6][%mdl 32]} c5+ {[%emt 0:01:28]} 35. Ke4 {[%emt 0:00:05]} a4 {[%emt 0:00:09][%cal Ba5a4,Ba4a3][%mdl 32]} 36. f5 {[%emt 0:02:45]} b4 {[%emt 0:02:36]} 37. b3 {[%emt 0:04:08] White mates.} ({Worse is} 37. gxf6 c4 38. Ke3 (38. Kd4 $2 c3 $19) 38... c3 39. bxc3 b3 40. axb3 a3 $11) 37... a3 {[%emt 0:04:32]} 38. Kd3 {[%emt 0:00:58]} Kd5 {[%emt 0:00:14]} 39. gxf6 {[%emt 0:00:19] Weighted Error Value: White=0.04 (flawless) /Black=0.31.  Loses game:     	---       	Black=1      Mistake:       	---       	Black=1      Inaccurate:     	---       	Black=1      OK:         	White=6     	Black=9      Best:        	White=2     	Black=2      Strong:       	White=3     	Black=1} 1-0

[Event "7th Sharjah Masters 2024"]
[Site "Sharjah"]
[Date "2024.05.22"]
[Round "9.14"]
[White "Sindarov, Javokhir"]
[Black "Siddharth, Jagadeesh"]
[Result "1-0"]
[ECO "A16"]
[WhiteElo "2684"]
[BlackElo "2512"]
[Annotator "TA"]
[PlyCount "45"]
[EventDate "2024.05.13"]
[EventType "swiss"]
[EventCountry "UAE"]
[SourceTitle "playchess.com"]
[Source "ChessBase"]
[SourceQuality "1"]
[TimeControl "5400+30"]

{[%evp 9,45,56,62,41,51,20,16,14,14,11,16,21,19,12,6,10,14,2,1,2,11,2,31,29,116,125,130,128,133,127,160,161,228,234,389,371,409,406]} 1. c4 {[%emt 0:00:20]} Nf6 {[%emt 0:01:21]} 2. Nc3 {[%emt 0:00:06]} g6 {[%emt 0:00:05]} 3. e4 {[%emt 0:00:07]} e5 {[%emt 0:00:03]} 4. Nf3 {[%emt 0:06:14]} Bg7 {[%emt 0:00:06]} 5. Nxe5 {[%emt 0:00:54]} O-O {[%emt 0:00:07][%cal Bh8f8,Bf8e8,Be8e4][%mdl 32]} 6. Nf3 {[%emt 0:00:10]} Re8 {[%emt 0:00:06]} 7. Bd3 {[%emt 0:01:45]} Nxe4 {[%emt 0:00:09]} 8. Bxe4 {[%emt 0:00:03] d4 would now be deadly. The position is equal.} Bxc3 {[%emt 0:00:07]} 9. dxc3 {[%emt 0:00:17] aiming for Ng5.} Rxe4+ {[%emt 0:00:07]} 10. Be3 {[%emt 0:00:03]} Nc6 {[%emt 0:00:08]} 11. Qd5 {[%emt 0:07:23] Against d6} Qe8 {[%emt 0:00:05]} 12. O-O $36 {[%emt 0:01:25][%mdl 2048] White has some pressure.} d6 {[%emt 0:05:31]} 13. h3 {[%emt 0:01:05]} b6 {[%emt 0:02:58]} 14. Rfe1 {[%emt 0:06:18]} Bb7 {[%emt 0:00:27]} 15. b3 {[%emt 0:05:29]} Rb8 {[%emt 0:05:30][%cal Oc6d4]} 16. Qd2 {[%emt 0:01:45]} f6 {[%emt 0:07:19] [#]} (16... Qd7 $11) 17. Bxb6 $1 $16 {[%emt 0:03:15][%mdl 512]} Rxe1+ {[%emt 0:04:39]} 18. Rxe1 {[%emt 0:00:17]} Qf7 {[%emt 0:00:06]} 19. Bd4 {[%emt 0:00:11] White is much more active.} a5 {[%emt 0:00:11]} 20. c5 {[%emt 0:07:56]} Ne5 {[%emt 0:06:12] [#]} (20... Rd8 {is a better defense.}) 21. Nh2 $1 $18 {[%emt 0:05:29]} Qd5 $2 {[%emt 0:19:51]} (21... Qf8 22. c4 a4) 22. f4 {[%emt 0:00:25]} Nd7 {[%emt 0:09:25]} 23. c4 {[%emt 0:05:26] Weighted Error Value: White=0.04 (flawless) /Black=0.23 (precise) .  Mistake:       	---       	Black=3      Inaccurate:     	White=1     	Black=1      OK:         	White=7     	Black=7      Best:        	White=1     	Black=3      Brilliant:      	White=1     	---} 1-0